[Event "Early-Titled-Tuesday-Blitz-March-05-2024"]
[Site "Chess.com"]
[Date "2024.03.05"]
[Round "1"]
[White "Kopytkin"]
[Black "Hope_6"]
[Result "0-1"]
[WhiteElo "2457"]
[BlackElo "2821"]
[TimeControl "180+1"]
[EndTime "8:08:30 PST"]
[Termination "Hope_6 won on time"]

1. d4 {[%clk 0:03:00.9]} 1... d5 {[%clk 0:02:58.9]} 2. Bg5 {[%clk 0:03:00.5]}
2... h6 {[%clk 0:02:54.8]} 3. Bh4 {[%clk 0:02:56.9]} 3... Nf6 {[%clk 0:02:53.6]}
4. e3 {[%clk 0:02:56.6]} 4... Bf5 {[%clk 0:02:52.9]} 5. c4 {[%clk 0:02:56.5]}
5... c6 {[%clk 0:02:50.2]} 6. Nc3 {[%clk 0:02:55.5]} 6... e6 {[%clk 0:02:49.6]}
7. Qb3 {[%clk 0:02:54]} 7... Qb6 {[%clk 0:02:49.2]} 8. c5 {[%clk 0:02:52.2]}
8... Qc7 {[%clk 0:02:47.7]} 9. Bg3 {[%clk 0:02:51.4]} 9... Qc8 {[%clk
0:02:47.6]} 10. h3 {[%clk 0:02:52]} 10... Nbd7 {[%clk 0:02:46.6]} 11. Nf3 {[%clk
0:02:51.6]} 11... b6 {[%clk 0:02:39.3]} 12. cxb6 {[%clk 0:02:48.1]} 12... axb6
{[%clk 0:02:40.2]} 13. Be2 {[%clk 0:02:48]} 13... Be7 {[%clk 0:02:39.5]} 14. O-O
{[%clk 0:02:47.7]} 14... O-O {[%clk 0:02:39.7]} 15. Rfc1 {[%clk 0:02:47.9]}
15... Qb7 {[%clk 0:02:39.6]} 16. a4 {[%clk 0:02:48]} 16... c5 {[%clk 0:02:34.3]}
17. dxc5 {[%clk 0:02:32.6]} 17... Nxc5 {[%clk 0:02:33.6]} 18. Qd1 {[%clk
0:02:33.2]} 18... Rfc8 {[%clk 0:02:30.9]} 19. Nd4 {[%clk 0:02:29.7]} 19... Bh7
{[%clk 0:02:29]} 20. Ncb5 {[%clk 0:02:05.9]} 20... Nce4 {[%clk 0:01:57.7]} 21.
Bh2 {[%clk 0:02:06]} 21... Rxc1 {[%clk 0:01:53.9]} 22. Rxc1 {[%clk 0:02:03.9]}
22... Rc8 {[%clk 0:01:53.4]} 23. Rxc8+ {[%clk 0:01:21.8]} 23... Qxc8 {[%clk
0:01:53.1]} 24. Bc7 {[%clk 0:01:22.4]} 24... Qb7 {[%clk 0:01:47.2]} 25. Qc1
{[%clk 0:01:10.3]} 25... Nc5 {[%clk 0:01:38.1]} 26. b3 {[%clk 0:01:05.8]} 26...
Nfd7 {[%clk 0:01:20.8]} 27. f4 {[%clk 0:00:53.5]} 27... Bf6 {[%clk 0:01:15.2]}
28. Nf3 {[%clk 0:00:36.5]} 28... Nxb3 {[%clk 0:01:12.9]} 29. Qa3 {[%clk
0:00:34.1]} 29... Nbc5 {[%clk 0:01:10]} 30. Ne5 {[%clk 0:00:33.7]} 30... Bxe5
{[%clk 0:00:58.6]} 31. fxe5 {[%clk 0:00:32.9]} 31... Be4 {[%clk 0:00:53.8]} 32.
Bd6 {[%clk 0:00:32.4]} 32... Qa8 {[%clk 0:00:46.7]} 33. Nd4 {[%clk 0:00:31.2]}
33... Qxa4 {[%clk 0:00:42.1]} 34. Qxa4 {[%clk 0:00:30.7]} 34... Nxa4 {[%clk
0:00:43]} 35. Bb5 {[%clk 0:00:31.2]} 35... Nac5 {[%clk 0:00:43.1]} 36. Kf2
{[%clk 0:00:30.4]} 36... Bd3 {[%clk 0:00:35.8]} 37. Bc7 {[%clk 0:00:20.5]} 37...
Bxb5 {[%clk 0:00:33.2]} 38. Nxb5 {[%clk 0:00:21.4]} 38... Nd3+ {[%clk
0:00:30.1]} 39. Ke2 {[%clk 0:00:21.6]} 39... N3xe5 {[%clk 0:00:30.7]} 40. Nd6
{[%clk 0:00:21]} 40... Nc4 {[%clk 0:00:29.9]} 41. Nc8 {[%clk 0:00:19.1]} 41...
f6 {[%clk 0:00:27.8]} 42. Kd3 {[%clk 0:00:13.6]} 42... Kf7 {[%clk 0:00:27.4]}
43. Kd4 {[%clk 0:00:12.1]} 43... b5 {[%clk 0:00:23.5]} 44. Bd6 {[%clk
0:00:09.7]} 44... Ndb6 {[%clk 0:00:18.1]} 45. Nxb6 {[%clk 0:00:07.6]} 45... Nxb6
{[%clk 0:00:19]} 46. Bb4 {[%clk 0:00:07]} 46... Nd7 {[%clk 0:00:17.9]} 47. e4
{[%clk 0:00:06.5]} 47... dxe4 {[%clk 0:00:17.7]} 48. Kxe4 {[%clk 0:00:07.1]}
48... Nb6 {[%clk 0:00:16.3]} 49. g4 {[%clk 0:00:06.7]} 49... Nd5 {[%clk
0:00:17.2]} 50. Bc5 {[%clk 0:00:06.9]} 50... b4 {[%clk 0:00:17.4]} 51. Kd4
{[%clk 0:00:06.9]} 51... g6 {[%clk 0:00:15.5]} 52. h4 {[%clk 0:00:06.8]} 52...
h5 {[%clk 0:00:15.2]} 53. g5 {[%clk 0:00:05.7]} 53... fxg5 {[%clk 0:00:15.8]}
54. hxg5 {[%clk 0:00:06.6]} 54... h4 {[%clk 0:00:16]} 55. Kc4 {[%clk 0:00:05.8]}
55... h3 {[%clk 0:00:15.7]} 56. Bd6 {[%clk 0:00:06.3]} 56... Ke8 {[%clk
0:00:15.4]} 57. Be5 {[%clk 0:00:06.2]} 57... Kd7 {[%clk 0:00:15.9]} 58. Kb3
{[%clk 0:00:05]} 58... Kc6 {[%clk 0:00:15.9]} 59. Kc4 {[%clk 0:00:05.5]} 59...
Ne3+ {[%clk 0:00:14.1]} 60. Kxb4 {[%clk 0:00:04.8]} 60... Ng4 {[%clk 0:00:15]}
61. Bg3 {[%clk 0:00:04.4]} 61... h2 {[%clk 0:00:15.9]} 62. Bxh2 {[%clk
0:00:04.5]} 62... Nxh2 {[%clk 0:00:16.8]} 0-1

[Event "Early-Titled-Tuesday-Blitz-March-05-2024"]
[Site "Chess.com"]
[Date "2024.03.05"]
[Round "1"]
[White "Iskusnyh"]
[Black "Grindaveci"]
[Result "1/2-1/2"]
[WhiteElo "2695"]
[BlackElo "2409"]
[TimeControl "180+1"]
[EndTime "8:08:42 PST"]
[Termination "Game drawn by stalemate"]

1. d4 {[%clk 0:03:00.9]} 1... d5 {[%clk 0:02:59.9]} 2. c4 {[%clk 0:03:00.3]}
2... c6 {[%clk 0:02:59.4]} 3. Nf3 {[%clk 0:03:00.3]} 3... Nf6 {[%clk 0:02:59.9]}
4. e3 {[%clk 0:02:59.3]} 4... e6 {[%clk 0:02:59.3]} 5. Bd3 {[%clk 0:02:58.3]}
5... dxc4 {[%clk 0:02:59.1]} 6. Bxc4 {[%clk 0:02:56.7]} 6... Bd6 {[%clk
0:02:59.7]} 7. O-O {[%clk 0:02:52.2]} 7... O-O {[%clk 0:03:00]} 8. Bd3 {[%clk
0:02:49]} 8... Nbd7 {[%clk 0:02:57.9]} 9. Nbd2 {[%clk 0:02:47.8]} 9... e5 {[%clk
0:02:56.8]} 10. Nc4 {[%clk 0:02:46.4]} 10... Bc7 {[%clk 0:02:35.2]} 11. Ncxe5
{[%clk 0:02:43]} 11... Nxe5 {[%clk 0:02:31]} 12. Nxe5 {[%clk 0:02:41.3]} 12...
Bxe5 {[%clk 0:02:30.5]} 13. dxe5 {[%clk 0:02:42.2]} 13... Ng4 {[%clk 0:02:29.5]}
14. h3 {[%clk 0:02:32.7]} 14... Nh6 {[%clk 0:02:19.6]} 15. e4 {[%clk 0:02:14.9]}
15... Qh4 {[%clk 0:02:15.9]} 16. Qf3 {[%clk 0:02:05]} 16... Be6 {[%clk
0:02:14.9]} 17. Bf4 {[%clk 0:01:59]} 17... Rad8 {[%clk 0:02:10.4]} 18. Rfd1
{[%clk 0:01:54.8]} 18... Rd7 {[%clk 0:02:00.7]} 19. Bf1 {[%clk 0:01:48.5]} 19...
Rfd8 {[%clk 0:01:56.8]} 20. Rxd7 {[%clk 0:01:47.1]} 20... Rxd7 {[%clk
0:01:57.7]} 21. g3 {[%clk 0:01:47.3]} 21... Qe7 {[%clk 0:01:56]} 22. Qe3 {[%clk
0:01:41.8]} 22... Qb4 {[%clk 0:01:52.2]} 23. b3 {[%clk 0:01:37.4]} 23... a5
{[%clk 0:01:50.8]} 24. Bg2 {[%clk 0:01:27.4]} 24... Qd4 {[%clk 0:01:46.2]} 25.
Qxd4 {[%clk 0:01:05.3]} 25... Rxd4 {[%clk 0:01:46]} 26. Be3 {[%clk 0:01:04.2]}
26... Rd3 {[%clk 0:01:44.9]} 27. Bf1 {[%clk 0:01:03.7]} 27... Rd7 {[%clk
0:01:44.4]} 28. Bb6 {[%clk 0:01:00.6]} 28... a4 {[%clk 0:01:40.7]} 29. bxa4
{[%clk 0:00:59.4]} 29... Rd2 {[%clk 0:01:40.5]} 30. a5 {[%clk 0:00:58.8]} 30...
Rxa2 {[%clk 0:01:38.7]} 31. Rd1 {[%clk 0:00:57.8]} 31... g6 {[%clk 0:01:27.3]}
32. Rd8+ {[%clk 0:00:55.8]} 32... Kg7 {[%clk 0:01:27.2]} 33. Bc5 {[%clk
0:00:55.9]} 33... Ng8 {[%clk 0:01:20.6]} 34. Bf8+ {[%clk 0:00:53.6]} 34... Kh8
{[%clk 0:01:20.4]} 35. Ra8 {[%clk 0:00:49.7]} 35... h5 {[%clk 0:01:18.2]} 36.
Ra7 {[%clk 0:00:44]} 36... Ra1 {[%clk 0:01:14.2]} 37. Kg2 {[%clk 0:00:43.3]}
37... Kh7 {[%clk 0:01:07.2]} 38. Bb4 {[%clk 0:00:39]} 38... Rb1 {[%clk
0:00:55.9]} 39. Rxb7 {[%clk 0:00:38]} 39... c5 {[%clk 0:00:56.1]} 40. a6 {[%clk
0:00:38]} 40... cxb4 {[%clk 0:00:55]} 41. a7 {[%clk 0:00:31.6]} 41... Ra1 {[%clk
0:00:55.4]} 42. f4 {[%clk 0:00:30.7]} 42... b3 {[%clk 0:00:55]} 43. Kf2 {[%clk
0:00:30.2]} 43... Ra2+ {[%clk 0:00:45.6]} 44. Ke3 {[%clk 0:00:29.5]} 44... b2
{[%clk 0:00:42.4]} 45. Bd3 {[%clk 0:00:29.4]} 45... Ra3 {[%clk 0:00:40.6]} 46.
Rxb2 {[%clk 0:00:26.3]} 46... Rxa7 {[%clk 0:00:40.2]} 47. f5 {[%clk 0:00:26.8]}
47... gxf5 {[%clk 0:00:37.9]} 48. exf5 {[%clk 0:00:26.9]} 48... Bd5 {[%clk
0:00:38.6]} 49. Kf4 {[%clk 0:00:26.1]} 49... f6 {[%clk 0:00:33.1]} 50. exf6
{[%clk 0:00:22.9]} 50... Nxf6 {[%clk 0:00:32.9]} 51. Kg5 {[%clk 0:00:23.1]}
51... Kg7 {[%clk 0:00:33]} 52. Rb6 {[%clk 0:00:21.6]} 52... Ne4+ {[%clk
0:00:31]} 53. Bxe4 {[%clk 0:00:19.5]} 53... Bxe4 {[%clk 0:00:31.9]} 54. Rg6+
{[%clk 0:00:19.7]} 54... Kf7 {[%clk 0:00:30.6]} 55. Rh6 {[%clk 0:00:20]} 55...
Ra3 {[%clk 0:00:28.7]} 56. Kf4 {[%clk 0:00:19.1]} 56... Bf3 {[%clk 0:00:21.2]}
57. g4 {[%clk 0:00:19.3]} 57... hxg4 {[%clk 0:00:20.8]} 58. hxg4 {[%clk
0:00:20.2]} 58... Bd1 {[%clk 0:00:11.2]} 59. Rh7+ {[%clk 0:00:20.3]} 59... Kg8
{[%clk 0:00:11.2]} 60. Rh4 {[%clk 0:00:19.9]} 60... Ra4+ {[%clk 0:00:11.5]} 61.
Kg5 {[%clk 0:00:20.2]} 61... Kg7 {[%clk 0:00:11.9]} 62. f6+ {[%clk 0:00:19.6]}
62... Kg8 {[%clk 0:00:11.6]} 63. Kf5 {[%clk 0:00:16.7]} 63... Bxg4+ {[%clk
0:00:09.8]} 64. Rxg4+ {[%clk 0:00:16.3]} 64... Rxg4 {[%clk 0:00:10.4]} 65. Kxg4
{[%clk 0:00:17.2]} 65... Kf7 {[%clk 0:00:11.1]} 66. Kf5 {[%clk 0:00:17.4]} 66...
Kf8 {[%clk 0:00:11.6]} 67. Kg5 {[%clk 0:00:16]} 67... Kf7 {[%clk 0:00:10.5]} 68.
Kf5 {[%clk 0:00:16.2]} 68... Kf8 {[%clk 0:00:10.8]} 69. Ke6 {[%clk 0:00:17.1]}
69... Ke8 {[%clk 0:00:11.1]} 70. f7+ {[%clk 0:00:17.1]} 70... Kf8 {[%clk
0:00:11.5]} 71. Kf6 {[%clk 0:00:18]} 1/2-1/2

[Event "Early-Titled-Tuesday-Blitz-March-05-2024"]
[Site "Chess.com"]
[Date "2024.03.05"]
[Round "1"]
[White "Rodalquilar"]
[Black "GM4life"]
[Result "1/2-1/2"]
[WhiteElo "2800"]
[BlackElo "2461"]
[TimeControl "180+1"]
[EndTime "8:08:43 PST"]
[Termination "Game drawn by repetition"]

1. d4 {[%clk 0:03:00.9]} 1... Nf6 {[%clk 0:02:58.9]} 2. Nf3 {[%clk 0:03:00.4]}
2... e6 {[%clk 0:02:58.3]} 3. Bf4 {[%clk 0:03:00.5]} 3... b6 {[%clk 0:02:56.2]}
4. e3 {[%clk 0:03:00.7]} 4... Bb7 {[%clk 0:02:56.4]} 5. Nbd2 {[%clk 0:03:01.2]}
5... Be7 {[%clk 0:02:56.3]} 6. h3 {[%clk 0:03:01.7]} 6... O-O {[%clk 0:02:56.7]}
7. Bd3 {[%clk 0:03:02]} 7... d5 {[%clk 0:02:46.2]} 8. O-O {[%clk 0:03:02]} 8...
c5 {[%clk 0:02:45.5]} 9. c3 {[%clk 0:03:02.3]} 9... Nbd7 {[%clk 0:02:41.9]} 10.
Qe2 {[%clk 0:03:02]} 10... Ne4 {[%clk 0:02:40.3]} 11. Rfe1 {[%clk 0:03:01.9]}
11... f5 {[%clk 0:02:33.4]} 12. Rad1 {[%clk 0:02:58.8]} 12... Bf6 {[%clk
0:02:19.1]} 13. Bh2 {[%clk 0:02:51.6]} 13... Qe7 {[%clk 0:02:18]} 14. Ne5 {[%clk
0:02:49.4]} 14... Bxe5 {[%clk 0:02:16.9]} 15. dxe5 {[%clk 0:02:49.4]} 15... c4
{[%clk 0:01:51.2]} 16. Bc2 {[%clk 0:02:46.4]} 16... Ndc5 {[%clk 0:01:44.7]} 17.
Nf3 {[%clk 0:02:46.6]} 17... Ba6 {[%clk 0:01:39.2]} 18. Rf1 {[%clk 0:02:37.9]}
18... Nd3 {[%clk 0:01:38.9]} 19. Rb1 {[%clk 0:02:37.7]} 19... Rac8 {[%clk
0:01:26]} 20. Nd4 {[%clk 0:02:36]} 20... Rfe8 {[%clk 0:01:23.8]} 21. f3 {[%clk
0:02:32.8]} 21... Nec5 {[%clk 0:01:22]} 22. Bg3 {[%clk 0:02:33]} 22... Qg5
{[%clk 0:01:20.7]} 23. Kh2 {[%clk 0:02:26.7]} 23... Qg6 {[%clk 0:01:12.8]} 24.
Qd2 {[%clk 0:02:13.9]} 24... Rf8 {[%clk 0:01:11.3]} 25. b4 {[%clk 0:02:12.1]}
25... cxb3 {[%clk 0:00:58]} 26. axb3 {[%clk 0:02:11.8]} 26... f4 {[%clk
0:00:40.7]} 27. exf4 {[%clk 0:02:11]} 27... Qh6 {[%clk 0:00:19]} 28. b4 {[%clk
0:01:57.1]} 28... Nxe5 {[%clk 0:00:19]} 29. bxc5 {[%clk 0:01:38.5]} 29... Bxf1
{[%clk 0:00:19.6]} 30. Rxf1 {[%clk 0:01:23.6]} 30... Nc4 {[%clk 0:00:19.3]} 31.
Qe2 {[%clk 0:01:22.5]} 31... bxc5 {[%clk 0:00:19.9]} 32. Qxe6+ {[%clk
0:01:21.1]} 32... Qxe6 {[%clk 0:00:20.4]} 33. Nxe6 {[%clk 0:01:22]} 33... Rfe8
{[%clk 0:00:20.9]} 34. Re1 {[%clk 0:01:03.8]} 34... Rb8 {[%clk 0:00:18.2]} 35.
f5 {[%clk 0:01:00.7]} 35... Rb2 {[%clk 0:00:17.7]} 36. Bd3 {[%clk 0:01:00.7]}
36... Nd2 {[%clk 0:00:17.3]} 37. Kh1 {[%clk 0:00:56.6]} 37... c4 {[%clk
0:00:17.6]} 38. Be2 {[%clk 0:00:55.3]} 38... g6 {[%clk 0:00:16.9]} 39. Ra1
{[%clk 0:00:43.9]} 39... gxf5 {[%clk 0:00:16.2]} 40. Nf4 {[%clk 0:00:43.7]}
40... Nb3 {[%clk 0:00:15.3]} 41. Rxa7 {[%clk 0:00:39.2]} 41... Rexe2 {[%clk
0:00:15.9]} 42. Nxe2 {[%clk 0:00:39.6]} 42... Rxe2 {[%clk 0:00:16.4]} 43. Bf4
{[%clk 0:00:30.9]} 43... Rc2 {[%clk 0:00:15.9]} 44. Rd7 {[%clk 0:00:28.8]} 44...
Rxc3 {[%clk 0:00:15.7]} 45. Rxd5 {[%clk 0:00:29.3]} 45... Rd3 {[%clk 0:00:15.2]}
46. Rb5 {[%clk 0:00:20.4]} 46... Nd4 {[%clk 0:00:12.5]} 47. Rb8+ {[%clk
0:00:20.5]} 47... Kf7 {[%clk 0:00:12.2]} 48. Rc8 {[%clk 0:00:21.4]} 48... c3
{[%clk 0:00:12.3]} 49. Be5 {[%clk 0:00:20.5]} 49... Rd1+ {[%clk 0:00:09.4]} 50.
Kh2 {[%clk 0:00:20.6]} 50... c2 {[%clk 0:00:08.4]} 51. Rc7+ {[%clk 0:00:13.4]}
51... Ke6 {[%clk 0:00:08.1]} 52. Bf4 {[%clk 0:00:14]} 52... Ne2 {[%clk
0:00:05.3]} 53. Bg5 {[%clk 0:00:13.9]} 53... c1=Q {[%clk 0:00:05.2]} 54. Bxc1
{[%clk 0:00:14.5]} 54... Rxc1 {[%clk 0:00:05.5]} 55. Rxh7 {[%clk 0:00:15.3]}
55... Nf4 {[%clk 0:00:05.5]} 56. Rh6+ {[%clk 0:00:14.3]} 56... Ke5 {[%clk
0:00:05.6]} 57. Rh8 {[%clk 0:00:13.3]} 57... Rc2 {[%clk 0:00:05.9]} 58. Rg8
{[%clk 0:00:14]} 58... Kf6 {[%clk 0:00:06.1]} 59. h4 {[%clk 0:00:13.8]} 59...
Kf7 {[%clk 0:00:06.4]} 60. Rg5 {[%clk 0:00:13.6]} 60... Kf6 {[%clk 0:00:07.1]}
61. Kh1 {[%clk 0:00:13.8]} 61... Ng6 {[%clk 0:00:07]} 62. g3 {[%clk 0:00:13.2]}
62... Ne5 {[%clk 0:00:07.3]} 63. g4 {[%clk 0:00:07.4]} 63... fxg4 {[%clk
0:00:07]} 64. fxg4 {[%clk 0:00:07.9]} 64... Rf2 {[%clk 0:00:06.2]} 65. Kg1
{[%clk 0:00:07.6]} 65... Nf3+ {[%clk 0:00:05.5]} 66. Kxf2 {[%clk 0:00:08.1]}
66... Nxg5 {[%clk 0:00:06.3]} 67. Kg3 {[%clk 0:00:06.2]} 67... Nf7 {[%clk
0:00:06.6]} 68. Kf4 {[%clk 0:00:06.4]} 68... Kg6 {[%clk 0:00:06.7]} 69. h5+
{[%clk 0:00:06]} 69... Kh6 {[%clk 0:00:07]} 70. Kf5 {[%clk 0:00:06.9]} 70... Ng5
{[%clk 0:00:07.2]} 71. Kf6 {[%clk 0:00:07.5]} 71... Nh3 {[%clk 0:00:07.8]} 72.
Kf5 {[%clk 0:00:07.4]} 72... Ng5 {[%clk 0:00:08.7]} 73. Kf4 {[%clk 0:00:07.8]}
73... Nh3+ {[%clk 0:00:09.4]} 74. Kg3 {[%clk 0:00:07.8]} 74... Ng5 {[%clk
0:00:10.3]} 75. Kh4 {[%clk 0:00:08.4]} 75... Nf7 {[%clk 0:00:10.9]} 76. Kh3
{[%clk 0:00:08.2]} 76... Ng5+ {[%clk 0:00:11.8]} 77. Kg3 {[%clk 0:00:08.8]}
77... Nf7 {[%clk 0:00:12.6]} 78. Kf3 {[%clk 0:00:09.4]} 78... Ng5+ {[%clk
0:00:13.5]} 79. Kf4 {[%clk 0:00:09.6]} 79... Nh3+ {[%clk 0:00:13.9]} 80. Kf5
{[%clk 0:00:10]} 80... Ng5 {[%clk 0:00:14.6]} 1/2-1/2

[Event "Early-Titled-Tuesday-Blitz-March-05-2024"]
[Site "Chess.com"]
[Date "2024.03.05"]
[Round "1"]
[White "chess_blitz00"]
[Black "nihalsarin"]
[Result "0-1"]
[WhiteElo "2526"]
[BlackElo "3193"]
[TimeControl "180+1"]
[EndTime "8:08:56 PST"]
[Termination "nihalsarin won on time"]

1. e4 {[%clk 0:03:00.9]} 1... c6 {[%clk 0:02:59.2]} 2. d4 {[%clk 0:03:00.6]}
2... d5 {[%clk 0:03:00.1]} 3. Nd2 {[%clk 0:03:01.1]} 3... dxe4 {[%clk
0:02:58.7]} 4. Nxe4 {[%clk 0:03:02]} 4... Nd7 {[%clk 0:02:57.4]} 5. Nf3 {[%clk
0:03:00.1]} 5... Ngf6 {[%clk 0:02:57.2]} 6. Nxf6+ {[%clk 0:03:00.4]} 6... Nxf6
{[%clk 0:02:58.1]} 7. Bd3 {[%clk 0:02:59.1]} 7... Bg4 {[%clk 0:02:58.3]} 8. c3
{[%clk 0:02:59]} 8... e6 {[%clk 0:02:58.7]} 9. h3 {[%clk 0:02:58.2]} 9... Bh5
{[%clk 0:02:59.2]} 10. Be2 {[%clk 0:02:48.8]} 10... Bd6 {[%clk 0:02:58.9]} 11.
O-O {[%clk 0:02:46]} 11... O-O {[%clk 0:02:59]} 12. Re1 {[%clk 0:02:20.4]} 12...
h6 {[%clk 0:02:58.7]} 13. Ne5 {[%clk 0:02:06.6]} 13... Bxe2 {[%clk 0:02:58.1]}
14. Qxe2 {[%clk 0:02:07.5]} 14... Qc7 {[%clk 0:02:56.3]} 15. Ng4 {[%clk
0:02:02]} 15... Nxg4 {[%clk 0:02:43.2]} 16. Qxg4 {[%clk 0:02:02.9]} 16... Kh7
{[%clk 0:02:43]} 17. Qe4+ {[%clk 0:02:03]} 17... Kh8 {[%clk 0:02:42.4]} 18. Qh4
{[%clk 0:01:59.7]} 18... Qe7 {[%clk 0:02:39.6]} 19. Qxe7 {[%clk 0:01:57]} 19...
Bxe7 {[%clk 0:02:40.5]} 20. Bf4 {[%clk 0:01:57.4]} 20... Kg8 {[%clk 0:02:40.4]}
21. Rad1 {[%clk 0:01:56.1]} 21... Rfd8 {[%clk 0:02:40.5]} 22. Kf1 {[%clk
0:01:55.7]} 22... a5 {[%clk 0:02:38.7]} 23. c4 {[%clk 0:01:46.3]} 23... a4
{[%clk 0:02:37.6]} 24. Rd3 {[%clk 0:01:43.6]} 24... Rd7 {[%clk 0:02:36]} 25.
Red1 {[%clk 0:01:43.1]} 25... b5 {[%clk 0:02:30.8]} 26. cxb5 {[%clk 0:01:19.8]}
26... cxb5 {[%clk 0:02:31.7]} 27. Rc1 {[%clk 0:01:18.6]} 27... Bf6 {[%clk
0:02:31.1]} 28. Be3 {[%clk 0:01:15.4]} 28... Rad8 {[%clk 0:02:28.8]} 29. Rc5
{[%clk 0:01:10.7]} 29... Rd5 {[%clk 0:02:29.4]} 30. Rxd5 {[%clk 0:01:00.7]}
30... Rxd5 {[%clk 0:02:30.3]} 31. Ke2 {[%clk 0:01:00.7]} 31... Kf8 {[%clk
0:02:29.7]} 32. b3 {[%clk 0:00:59.5]} 32... axb3 {[%clk 0:02:17.6]} 33. Rxb3
{[%clk 0:00:59.1]} 33... Ke7 {[%clk 0:02:16]} 34. Rb4 {[%clk 0:00:56.2]} 34...
Kd7 {[%clk 0:02:15.7]} 35. a4 {[%clk 0:00:55.9]} 35... bxa4 {[%clk 0:02:09.1]}
36. Rxa4 {[%clk 0:00:56.8]} 36... Rb5 {[%clk 0:01:50.6]} 37. Ra7+ {[%clk
0:00:41.8]} 37... Ke8 {[%clk 0:01:51.1]} 38. Ra8+ {[%clk 0:00:38.8]} 38... Bd8
{[%clk 0:01:51.4]} 39. Ra4 {[%clk 0:00:35.4]} 39... Ke7 {[%clk 0:01:49]} 40. Kf3
{[%clk 0:00:32.6]} 40... Kf6 {[%clk 0:01:48.8]} 41. g3 {[%clk 0:00:23.7]} 41...
Kg6 {[%clk 0:01:48.7]} 42. h4 {[%clk 0:00:23.2]} 42... h5 {[%clk 0:01:46.6]} 43.
Ke4 {[%clk 0:00:20.6]} 43... Bf6 {[%clk 0:01:46.8]} 44. Rc4 {[%clk 0:00:19.9]}
44... Ra5 {[%clk 0:01:43.8]} 45. Rc5 {[%clk 0:00:19.2]} 45... Ra4 {[%clk
0:01:44.6]} 46. Kf3 {[%clk 0:00:13.4]} 46... Be7 {[%clk 0:01:17.8]} 47. Rb5
{[%clk 0:00:12.1]} 47... f6 {[%clk 0:01:12.6]} 48. Ke4 {[%clk 0:00:12.4]} 48...
Ba3 {[%clk 0:01:06.8]} 49. Kf3 {[%clk 0:00:12.4]} 49... Ra6 {[%clk 0:01:02.5]}
50. d5 {[%clk 0:00:12.2]} 50... e5 {[%clk 0:01:02.7]} 51. Bc5 {[%clk 0:00:10.6]}
51... Kf5 {[%clk 0:01:00.2]} 52. Bxa3 {[%clk 0:00:10.3]} 52... Rxa3+ {[%clk
0:01:01.1]} 53. Kg2 {[%clk 0:00:10.6]} 53... Rd3 {[%clk 0:01:01.1]} 54. Rb7
{[%clk 0:00:10.4]} 54... g6 {[%clk 0:00:58.9]} 55. Rb5 {[%clk 0:00:11.1]} 55...
Rd2 {[%clk 0:00:57]} 56. Kf3 {[%clk 0:00:10.9]} 56... e4+ {[%clk 0:00:56.2]} 57.
Ke3 {[%clk 0:00:11]} 57... Rd3+ {[%clk 0:00:56.8]} 58. Ke2 {[%clk 0:00:11.6]}
58... Ke5 {[%clk 0:00:57.7]} 59. d6+ {[%clk 0:00:04.8]} 59... Kxd6 {[%clk
0:00:57.4]} 60. Rb6+ {[%clk 0:00:05.5]} 60... Ke5 {[%clk 0:00:57.3]} 61. Rb5+
{[%clk 0:00:06.1]} 61... Rd5 {[%clk 0:00:57.6]} 62. Rb8 {[%clk 0:00:06.6]} 62...
Kf5 {[%clk 0:00:56.6]} 63. Ke3 {[%clk 0:00:06.5]} 63... Rd3+ {[%clk 0:00:42.1]}
64. Ke2 {[%clk 0:00:07]} 64... Kg4 {[%clk 0:00:42.8]} 65. Rg8 {[%clk 0:00:06.3]}
65... Kh3 {[%clk 0:00:42.2]} 66. Rxg6 {[%clk 0:00:05.9]} 66... Rf3 {[%clk
0:00:43]} 67. Rh6 {[%clk 0:00:05.8]} 67... Kg2 {[%clk 0:00:42.7]} 68. Rxh5
{[%clk 0:00:05.6]} 68... f5 {[%clk 0:00:28.2]} 69. Rg5 {[%clk 0:00:03.6]} 69...
Rxf2+ {[%clk 0:00:28.8]} 70. Ke3 {[%clk 0:00:04]} 70... Kf1 {[%clk 0:00:28.5]}
71. g4 {[%clk 0:00:02.9]} 71... Rf3+ {[%clk 0:00:25.7]} 72. Kd4 {[%clk
0:00:02.9]} 72... e3 {[%clk 0:00:26.4]} 73. gxf5 {[%clk 0:00:01.7]} 73... e2
{[%clk 0:00:26.6]} 74. f6 {[%clk 0:00:01.5]} 74... e1=Q {[%clk 0:00:26.4]} 75.
Re5 {[%clk 0:00:01.8]} 75... Qc3+ {[%clk 0:00:26.2]} 76. Kd5 {[%clk 0:00:02.1]}
76... Rxf6 {[%clk 0:00:26.1]} 77. h5 {[%clk 0:00:01.8]} 77... Qc6+ {[%clk
0:00:26.1]} 78. Kd4 {[%clk 0:00:01.7]} 78... Rf4+ {[%clk 0:00:26.4]} 0-1